bitfinex-derivatives/quotes_BTCF0:USTF0_20251206
["timestamp","ask_amount","ask_price","bid_price","bid_amount"]
[1765035558896,0.0621,89715.0,89714.0,0.57601]
[1765035559097,0.07995,89715.0,89714.0,0.57601]
[1765035560404,0.0621,89715.0,89714.0,0.57601]
[1765035562702,0.004,89715.0,89714.0,0.57601]
[1765035564094,0.03261,89715.0,89714.0,0.57601]
[1765035564301,0.0621,89715.0,89714.0,0.57601]
[1765035564502,0.07995,89715.0,89714.0,0.57601]
[1765035565005,0.07995,89715.0,89714.0,0.54813]
[1765035565405,0.07995,89715.0,89714.0,0.57593]
[1765035568604,0.0621,89715.0,89714.0,0.57593]
[1765035569908,0.07948,89715.0,89714.0,0.57593]
[1765035577509,0.004,89715.0,89714.0,0.57593]
[1765035577714,0.03293,89715.0,89714.0,0.57593]
[1765035577914,0.06068,89715.0,89714.0,0.57593]
[1765035584622,0.03293,89715.0,89714.0,0.57593]
[1765035584817,0.004,89715.0,89714.0,0.57593]
[1765035589214,0.004,89715.0,89714.0,0.67599859]
[1765035589615,0.004,89715.0,89714.0,0.57593]
[1765035592422,0.00016729,89723.0,89722.0,0.0662945]
[1765035592613,0.00016729,89723.0,89722.0,0.9444145]
[1765035594221,0.00027863,89726.0,89725.0,0.06393]
[1765035594530,0.00027863,89726.0,89725.0,0.05515]
[1765035594724,0.05502863,89726.0,89725.0,0.05515]
[1765035595523,0.05902863,89726.0,89725.0,0.05615]
[1765035599426,0.05902863,89726.0,89725.0,0.06840215]
[1765035599624,0.05702863,89726.0,89725.0,0.06740215]
[1765035599828,0.05602863,89726.0,89725.0,0.06740215]
[1765035600434,0.02828863,89726.0,89725.0,0.06740215]
[1765035600635,0.00127863,89726.0,89725.0,0.06740215]
[1765035601333,0.00127863,89726.0,89725.0,0.07386215]
[1765035601536,0.00016719,89734.0,89733.0,0.05812]
[1765035601737,0.00016719,89734.0,89733.0,0.9362]
[1765035602337,0.06582019,89734.0,89733.0,0.9362]
[1765035603832,0.06682019,89734.0,89733.0,0.9362]
[1765035604032,0.06882019,89734.0,89733.0,0.9362]
[1765035605137,0.05767719,89734.0,89733.0,0.9362]
[1765035605928,0.00316719,89734.0,89733.0,0.9362]
[1765035608133,0.3608,89784.0,89765.0,0.04466]
[1765035608436,0.06633,89805.0,89795.0,0.0111353]
[1765035608640,0.06633,89805.0,89797.0,0.0111352]
[1765035608937,0.06633,89805.0,89797.0,0.4874598]
[1765035609139,0.06633,89805.0,89803.0,0.0111344]
[1765035609337,0.01649611,89810.0,89803.0,0.0111344]
[1765035609539,0.01649611,89810.0,89805.0,0.0111342]
[1765035609725,0.01649611,89810.0,89805.0,0.5290542]
[1765035609925,0.00016611,89810.0,89805.0,0.5290542]
[1765035610333,0.00016611,89810.0,89805.0,0.9190542]
[1765035610525,0.00016611,89810.0,89808.0,0.09064651]
[1765035610729,0.01633,89832.0,89819.0,0.0111325]
[1765035610933,0.01633,89832.0,89819.0,0.5290125]
[1765035611333,0.01633,89832.0,89819.0,0.56869882]
[1765035611532,0.01633,89832.0,89819.0,1.29029882]
[1765035611533,0.46974802,89820.0,89819.0,1.29029882]
[1765035611741,0.46974802,89820.0,89819.0,1.2506125]
[1765035612636,0.46974802,89820.0,89819.0,1.23948]
[1765035613341,0.47074802,89820.0,89819.0,1.23948]
[1765035613536,0.41823802,89820.0,89819.0,1.23948]
[1765035613934,0.47274802,89820.0,89819.0,0.7216]
[1765035614127,0.47274802,89820.0,89819.0,1.23928]
[1765035614328,0.47274802,89820.0,89819.0,1.2504125]
[1765035615338,0.41823802,89820.0,89819.0,1.2504125]
[1765035616031,0.44560802,89820.0,89819.0,1.2504125]
[1765035616546,0.47274802,89820.0,89819.0,0.7327325]
[1765035616744,0.47274802,89820.0,89819.0,1.2503325]
[1765035618347,0.20275063,89840.0,89832.0,0.0111308]
[1765035618348,0.07084,89840.0,89832.0,0.0111308]
[1765035618645,0.05451,89833.0,89832.0,0.0111308]
[1765035618943,0.05451,89833.0,89832.0,1.2503308]
[1765035619329,0.01633,89840.0,89832.0,1.2503308]
[1765035619533,0.07784,89840.0,89839.0,0.01113]
[1765035619739,0.07784,89840.0,89834.0,0.0111305]
[1765035620136,0.05751,89833.0,89832.0,0.81283653]
[1765035620341,0.05751,89833.0,89832.0,1.33035653]
[1765035620836,0.05451,89833.0,89832.0,1.33035653]
[1765035621345,0.05551,89833.0,89832.0,1.33035653]
[1765035621545,0.05551,89833.0,89832.0,1.34148743]
[1765035622440,0.05751,89833.0,89832.0,1.34148743]
[1765035622737,0.05751,89833.0,89832.0,1.33031653]
[1765035623644,0.05751,89833.0,89832.0,1.23904]
[1765035624731,0.05751,89833.0,89832.0,1.239]
[1765035625939,0.05751,89833.0,89832.0,1.23896]
[1765035626140,0.05751,89833.0,89832.0,0.7216]
[1765035626341,0.05751,89833.0,89832.0,1.23896]
[1765035627040,0.05551,89833.0,89832.0,1.23896]
[1765035627450,0.05451,89833.0,89832.0,1.23896]
[1765035629540,0.05451,89833.0,89832.0,1.23996]
[1765035630249,0.05451,89833.0,89832.0,1.31111]
[1765035631554,0.05451,89833.0,89832.0,1.3828]
[1765035633651,0.15951,89840.0,89839.0,0.1428]
[1765035633852,0.15951,89840.0,89839.0,0.6602]
[1765035635152,0.14318,89840.0,89839.0,0.6602]
[1765035635353,0.07513,89840.0,89839.0,0.6602]
[1765035635553,0.14345826,89846.0,89845.0,0.1428]
[1765035635850,0.14345826,89846.0,89845.0,1.02096]
[1765035636743,0.14545826,89846.0,89845.0,1.02096]
[1765035637145,0.00227826,89846.0,89845.0,1.02096]
[1765035637349,0.07740826,89846.0,89845.0,1.02096]
[1765035637755,0.14545826,89846.0,89845.0,1.02096]
[1765035640062,0.00227826,89846.0,89845.0,1.02096]
[1765035640564,0.07740826,89846.0,89845.0,1.02096]
[1765035640751,0.14545826,89846.0,89845.0,1.02096]
[1765035643467,0.00227826,89846.0,89845.0,1.02096]
[1765035643962,0.1968566,89866.0,89865.0,0.1428]
[1765035644154,0.1968566,89866.0,89865.0,1.02088]
[1765035644954,0.18573,89866.0,89865.0,1.02088]
[1765035645158,0.18773,89866.0,89865.0,1.02088]
[1765035645459,0.18573,89866.0,89865.0,1.02088]
[1765035645662,0.18673,89866.0,89865.0,1.02088]
[1765035646364,0.001,89866.0,89865.0,1.13293092]
[1765035646761,0.14345813,89886.0,89885.0,0.1428]
[1765035646958,0.14345813,89886.0,89885.0,1.10102139]
[1765035647262,0.14345813,89886.0,89885.0,1.02108]
[1765035647464,0.00027813,89886.0,89885.0,1.02108]
[1765035647760,0.14318,89907.0,89906.0,0.1428]
[1765035647964,0.14318,89907.0,89906.0,0.44067072]
[1765035648261,0.14318,89907.0,89906.0,0.3608]
[1765035648559,0.14318,89907.0,89906.0,0.87864]
[1765035649066,0.14418,89907.0,89906.0,0.87864]
[1765035649660,0.14518,89907.0,89906.0,0.87864]
[1765035649861,0.1543026,89899.0,89898.0,0.36096688]
[1765035650070,0.1543026,89899.0,89898.0,0.00016688]
[1765035650257,0.1543026,89899.0,89898.0,0.14296688]
[1765035651167,0.1543026,89899.0,89898.0,0.14396688]
[1765035651668,0.14318,89899.0,89898.0,0.14396688]
[1765035652058,0.07513,89899.0,89898.0,0.14396688]
[1765035652259,0.1414217,89906.0,89905.0,0.13302]
[1765035652460,0.1414217,89906.0,89905.0,0.49382]
[1765035653266,0.1414211,89911.0,89910.0,0.13302]
[1765035653567,0.1414211,89911.0,89910.0,0.6509]
[1765035653763,0.1303,89907.0,89906.0,0.03976441]
[1765035653959,0.1303,89907.0,89906.0,0.5576826]
[1765035654261,0.1303,89907.0,89906.0,0.6907026]
[1765035654466,0.1303,89907.0,89906.0,0.65094]
[1765035655160,0.06607,89911.0,89910.0,0.13302]
[1765035655360,0.1303,89915.0,89914.0,0.13302]
[1765035655558,0.1303,89915.0,89914.0,0.49382]
[1765035656864,0.06607,89915.0,89914.0,0.49382]
[1765035657063,0.06607,89915.0,89914.0,0.53354814]
[1765035657365,0.06707,89915.0,89914.0,0.49382]
[1765035657773,0.002,89915.0,89914.0,0.49382]
[1765035661368,0.0111177,89938.0,89925.0,0.12861]
[1765035661573,0.13679721,89926.0,89925.0,0.48941]
[1765035661877,0.13679721,89926.0,89925.0,0.3608]
[1765035662073,0.13679721,89926.0,89925.0,0.84132]
[1765035662272,0.13679721,89926.0,89925.0,0.3608]
[1765035663273,0.13679721,89926.0,89925.0,0.3618]
[1765035663578,0.13779721,89926.0,89925.0,0.3618]
[1765035663777,0.13779721,89926.0,89925.0,0.3608]
[1765035664877,0.13779721,89926.0,89917.0,0.00016688]
[1765035664878,0.1365202,89918.0,89917.0,0.00016688]
[1765035665080,0.1365208,89913.0,89911.0,0.02973601]
[1765035665381,0.3719202,89918.0,89907.0,0.5178]
[1765035665382,0.1254,89908.0,89907.0,0.5178]
[1765035665574,0.1365216,89907.0,89905.0,0.03965611]
[1765035665779,0.1365218,89905.0,89903.0,0.03965611]
[1765035665978,0.3608,89908.0,89887.0,0.3608]
[1765035665979,0.1365224,89900.0,89899.0,0.03965611]
[1765035666282,0.1365224,89900.0,89897.0,0.43112]
[1765035666283,0.0111227,89898.0,89897.0,0.43112]
[1765035666580,0.1365227,89898.0,89897.0,0.03968009]
[1765035666782,0.1254,89897.0,89896.0,0.03968009]
[1765035666980,0.1365229,89896.0,89895.0,0.03984697]
[1765035667175,0.1365229,89896.0,89895.0,0.06694688]
[1765035667578,0.1254,89893.0,89892.0,0.05948005]
[1765035667778,0.1254,89889.0,89888.0,0.12626005]
[1765035668082,0.1254,89889.0,89888.0,0.12861]
[1765035668477,0.1254,89889.0,89888.0,0.18809005]
[1765035668677,0.1254,89889.0,89888.0,0.12861]
[1765035669077,0.1254,89889.0,89888.0,0.16832326]
[1765035669280,0.4973225,89900.0,89899.0,0.06678]
[1765035669473,0.4973225,89900.0,89899.0,0.12861]
[1765035669670,0.3608,89900.0,89899.0,0.67616858]
[1765035669870,0.00016617,89913.0,89912.0,0.12861]
[1765035670079,0.00016617,89913.0,89912.0,0.64641]
[1765035670275,0.00016617,89913.0,89912.0,0.68613495]
[1765035670583,0.00016617,89913.0,89912.0,0.64641]
[1765035671180,0.00027801,89926.0,89919.0,0.01112]
[1765035671375,0.00027801,89926.0,89925.0,0.12861]
[1765035671376,0.12567801,89926.0,89925.0,0.12861]
[1765035671571,0.12567801,89926.0,89925.0,0.64649]
[1765035672175,0.06428801,89926.0,89925.0,0.68622164]
[1765035672376,0.00027801,89926.0,89925.0,0.64649]
[1765035673083,0.12567801,89926.0,89925.0,0.64749]
[1765035673283,0.12567801,89926.0,89925.0,0.001]
[1765035673578,0.1365197,89922.0,89921.0,0.05959746]
[1765035673986,0.1365197,89922.0,89904.0,0.00016688]
[1765035673987,0.1254,89919.0,89918.0,0.05959746]
[1765035674176,0.1254,89916.0,89915.0,0.03980211]
[1765035674377,0.1365218,89905.0,89904.0,0.00016688]
[1765035676077,0.1365218,89905.0,89904.0,0.00116688]
[1765035678082,0.1365218,89905.0,89904.0,0.12977688]
[1765035678881,0.06401,89905.0,89904.0,0.12977688]
[1765035679077,0.06401,89909.0,89908.0,0.12861]
[1765035679277,0.00016688,89913.0,89912.0,0.12861]
[1765035679480,0.12556688,89913.0,89912.0,0.12861]
[1765035680786,0.1254,89906.0,89905.0,0.14608499]
[1765035681087,0.1254,89906.0,89905.0,0.20791499]
[1765035682090,0.1365217,89906.0,89905.0,0.20791499]
[1765035682589,0.1254,89906.0,89905.0,0.20791499]
[1765035683189,0.1254,89906.0,89905.0,0.13061]
[1765035683591,0.011121,89912.0,89911.0,0.12861]
[1765035683784,0.00016688,89913.0,89912.0,0.12861]
[1765035684088,0.12556688,89913.0,89912.0,0.12861]
[1765035684795,0.136521,89912.0,89911.0,0.51804]
[1765035684978,0.1365217,89906.0,89905.0,0.08183825]
[1765035685293,0.16434,89910.0,89909.0,0.12861]
[1765035686792,0.16434,89910.0,89909.0,0.12961]
[1765035687189,0.011121,89912.0,89909.0,0.001]
[1765035687506,0.12556688,89913.0,89912.0,0.12861]
[1765035688687,0.00016688,89913.0,89912.0,0.12861]
[1765035688991,0.00016688,89913.0,89912.0,0.12961]
[1765035689493,0.00016688,89913.0,89912.0,0.13061]
[1765035690591,0.15223801,89926.0,89925.0,0.16156]
[1765035690894,0.15223801,89926.0,89919.0,0.24140153]
[1765035690895,0.15196,89920.0,89919.0,0.24140153]
[1765035691099,0.15196,89920.0,89919.0,0.67952]
[1765035691396,0.15196,89920.0,89919.0,0.75935968]
[1765035691587,0.15196,89920.0,89919.0,0.16156]
[1765035691897,0.0581301,89919.0,89918.0,0.07985521]
[1765035692087,0.2100901,89919.0,89918.0,0.59781521]
[1765035692483,0.2100901,89919.0,89918.0,0.07985521]
[1765035692799,0.2100901,89919.0,89918.0,0.24141521]
[1765035694686,0.2100901,89919.0,89918.0,0.24341521]
[1765035695704,0.2100901,89919.0,89918.0,0.08185521]
[1765035695994,0.2100901,89919.0,89918.0,0.002]
[1765035697094,0.2100901,89919.0,89918.0,0.08185521]
[1765035698395,0.2100901,89919.0,89918.0,0.002]
[1765035704885,0.15196,89914.0,89908.0,0.07989469]
[1765035705093,0.0111205,89916.0,89908.0,0.07989469]
[1765035705094,0.1630813,89909.0,89908.0,0.07989469]
[1765035706699,0.1630813,89909.0,89908.0,0.08089469]
[1765035707394,0.1630813,89909.0,89908.0,0.08189469]
[1765035707990,0.15196,89905.0,89904.0,0.00016688]
[1765035708195,0.15196,89892.0,89891.0,0.09992673]
[1765035708397,0.15196,89891.0,89890.0,0.09992673]
[1765035708699,0.1630842,89886.0,89885.0,0.77908673]
[1765035709298,0.15196,89886.0,89885.0,0.77908673]
[1765035709595,0.15196,89886.0,89885.0,0.67916]
[1765035710096,0.1630842,89886.0,89885.0,0.67916]
[1765035710991,0.15196,89884.0,89883.0,0.87848]
[1765035712200,0.15196,89884.0,89883.0,0.88048]
[1765035712498,0.15196,89884.0,89883.0,0.3628]
[1765035712699,0.15196,89884.0,89883.0,0.002]
[1765035713100,0.1630852,89878.0,89877.0,8e-08]
[1765035713289,0.1630863,89869.0,89868.0,0.00014051]
[1765035713486,0.5238863,89869.0,89868.0,0.00014051]
[1765035713689,0.1630876,89858.0,89857.0,0.3608]
[1765035714790,0.16320673,89858.0,89857.0,0.3608]
[1765035715698,0.16420673,89858.0,89857.0,0.3608]
[1765035715893,0.1559786,89850.0,89849.0,0.00016688]
[1765035716289,0.0111296,89842.0,89841.0,0.03980592]
[1765035716494,0.14485,89841.0,89840.0,0.03980592]
[1765035717406,0.3608,89843.0,89828.0,0.51784]
[1765035717407,0.18686,89838.0,89837.0,0.11621592]
[1765035717606,0.1869872,89838.0,89837.0,0.11621592]
[1765035718207,0.1869872,89838.0,89837.0,0.07641]
[1765035719202,0.1869872,89838.0,89837.0,0.10619192]
[1765035719806,0.1879872,89838.0,89837.0,0.14958]
[1765035720401,0.0011272,89838.0,89837.0,0.14958]
[1765035720604,0.0011272,89838.0,89837.0,0.54958]
[1765035720804,0.0111281,89855.0,89848.0,0.16204]
[1765035721197,0.3608,89862.0,89848.0,0.16204]
[1765035721404,0.3608,89862.0,89861.0,0.13828]
[1765035722010,0.3608,89870.0,89860.0,0.04089777]
[1765035722207,0.5058,89870.0,89869.0,0.13828]
[1765035722403,0.3608,89870.0,89869.0,0.13828]
[1765035722905,0.5058,89870.0,89869.0,0.13828]
[1765035724211,0.5068,89870.0,89869.0,0.06973]
[1765035724515,0.145,89868.0,89867.0,0.02976929]
[1765035724707,0.145,89868.0,89867.0,0.16804929]
[1765035725213,0.145,89868.0,89867.0,0.13828]
[1765035727004,0.04438,89874.0,89864.0,0.03969396]
[1765035727005,0.145,89865.0,89864.0,0.03969396]
[1765035727200,0.06938,89863.0,89862.0,0.13828]
[1765035727806,0.145,89863.0,89862.0,0.13828]
[1765035728119,0.0111268,89866.0,89865.0,0.13828]
[1765035728318,0.0111268,89866.0,89865.0,0.16807491]
[1765035728516,0.0111268,89866.0,89861.0,0.03989053]
[1765035728517,0.3608,89869.0,89868.0,0.13828]
[1765035729214,0.43018,89869.0,89868.0,0.13828]
[1765035730017,0.36096697,89878.0,89877.0,0.13828]
[1765035730613,0.43034697,89878.0,89877.0,0.13828]
[1765035730911,0.50596697,89878.0,89877.0,0.13828]
[1765035734313,0.14516697,89878.0,89877.0,0.13828]
[1765035737225,0.14516697,89878.0,89877.0,0.19804747]
[1765035738023,0.14516697,89878.0,89877.0,0.13828]
[1765035738225,0.14516697,89878.0,89877.0,0.19804747]
[1765035739222,0.14516697,89878.0,89877.0,0.13828]
[1765035743224,0.14516697,89878.0,89874.0,0.0111256]
[1765035743225,0.0111253,89877.0,89871.0,0.07953722]
[1765035743431,0.145,89872.0,89871.0,0.13828]
[1765035744129,0.145,89872.0,89871.0,0.21781722]
[1765035744330,0.145,89872.0,89871.0,0.13828]
[1765035745132,0.145,89872.0,89871.0,0.21781722]
[1765035745431,0.145,89872.0,89871.0,0.14128]
[1765035745623,0.145,89872.0,89871.0,0.14228]
[1765035746028,0.0805054,89877.0,89876.0,0.13828]
[1765035746234,0.06938,89877.0,89876.0,0.13828]
[1765035746536,0.145,89877.0,89876.0,0.13828]
[1765035747226,0.00016697,89878.0,89875.0,0.0111255]
[1765035747227,0.00016697,89878.0,89877.0,0.13828]
[1765035747732,0.06954697,89878.0,89877.0,0.13828]
[1765035747930,0.14516697,89878.0,89877.0,0.13828]
[1765035748127,0.00016697,89878.0,89877.0,0.57861722]
[1765035748331,0.00016697,89878.0,89877.0,0.49908]
[1765035750130,0.3719228,89897.0,89896.0,0.13121]
[1765035750131,0.5059828,89897.0,89896.0,0.13121]
[1765035750441,0.5059828,89897.0,89896.0,0.64901]
[1765035750643,0.1451828,89897.0,89896.0,0.64901]
[1765035751634,0.1461828,89897.0,89896.0,0.64901]
[1765035751839,0.1481828,89897.0,89896.0,0.64901]
[1765035752639,0.1481828,89897.0,89896.0,0.58422]
[1765035752843,0.1481828,89897.0,89896.0,0.5178]
[1765035753142,0.1481828,89897.0,89896.0,0.58422]
[1765035753343,0.1481828,89897.0,89896.0,0.64901]
[1765035754043,0.13706,89897.0,89896.0,0.64901]
[1765035754429,0.003,89897.0,89896.0,0.64901]
[1765035754629,0.002,89897.0,89896.0,0.64901]
[1765035754829,0.50614859,89905.0,89904.0,0.13121]
[1765035755348,0.14534859,89905.0,89904.0,0.13121]
[1765035756648,0.14534859,89905.0,89904.0,0.06642]
[1765035757049,0.14534859,89905.0,89904.0,0.13121]
[1765035761345,0.13422679,89905.0,89904.0,0.13121]
[1765035762158,0.13422679,89905.0,89904.0,0.21098557]
[1765035762954,0.13422679,89905.0,89904.0,0.13121]
[1765035763160,0.13422679,89905.0,89904.0,0.21097146]
[1765035764261,0.00016679,89905.0,89904.0,0.23156146]
[1765035764460,0.00016679,89905.0,89904.0,0.1518]
[1765035766853,0.00016679,89905.0,89904.0,0.13121]
[1765035767748,0.00016679,89905.0,89904.0,0.64881]
[1765035769465,0.17844,89922.0,89921.0,0.13121]
[1765035769665,0.17844,89922.0,89921.0,0.64873]
[1765035770252,0.3608,89943.0,89921.0,0.64873]
[1765035770253,0.3608,89951.0,89925.0,0.06479]
[1765035770459,0.06762,89932.0,89931.0,0.1423285]
[1765035770766,0.06644,89932.0,89931.0,0.6599685]
[1765035771067,0.16407,89940.0,89939.0,0.12987]
[1765035771572,0.06644,89940.0,89939.0,0.12987]
[1765035771769,0.003,89951.0,89945.0,0.12345]
[1765035771959,0.12315,89951.0,89950.0,0.12345]
[1765035772160,0.12315,89951.0,89950.0,0.13500303]
[1765035772462,0.005,89951.0,89949.0,0.03982203]
[1765035772667,0.005,89951.0,89944.0,0.05975659]
[1765035772668,0.12515,89951.0,89950.0,0.51768]
[1765035772968,0.12215,89951.0,89950.0,0.51768]
[1765035773169,0.12015,89951.0,89950.0,0.51768]
[1765035773369,0.12115,89951.0,89950.0,0.51768]
[1765035773761,0.12115,89951.0,89947.0,0.03982203]
[1765035773762,0.12015,89948.0,89947.0,0.03982203]
[1765035773970,0.12015,89948.0,89947.0,0.55750203]
[1765035774170,0.12015,89948.0,89947.0,0.51768]
[1765035774365,0.12015,89948.0,89946.0,0.03982203]
[1765035774566,0.1312667,89946.0,89945.0,0.03982203]
[1765035774765,0.1312667,89946.0,89945.0,0.51764]
[1765035774966,0.1312667,89946.0,89945.0,0.03982203]
[1765035775368,0.12015,89945.0,89944.0,0.03982203]
[1765035776470,0.0111172,89942.0,89941.0,0.03982203]
[1765035776674,0.1312675,89940.0,89939.0,0.03982203]
[1765035776861,0.12015,89939.0,89938.0,0.55746203]
[1765035777066,0.3608,89942.0,89936.0,0.03982203]
[1765035777067,0.1312677,89938.0,89936.0,0.03982203]
[1765035777266,0.12015,89932.0,89931.0,0.51764]
[1765035777476,0.12015,89932.0,89931.0,0.57739659]
[1765035777867,0.12015,89932.0,89931.0,0.18320659]
[1765035778369,0.12015,89932.0,89931.0,0.12345]
[1765035778770,0.12015,89932.0,89930.0,0.3608]
[1765035778771,0.1553,89936.0,89935.0,0.12345]
[1765035779274,0.06041,89936.0,89935.0,0.70082261]
[1765035779663,0.12015,89936.0,89935.0,0.70082261]
[1765035779864,0.1553,89936.0,89935.0,0.70082261]
[1765035780061,0.1553,89936.0,89935.0,0.64113]
[1765035780569,0.12015,89936.0,89935.0,0.70083401]
[1765035780770,0.1496,89943.0,89942.0,0.12026]
[1765035780972,0.1496,89943.0,89940.0,0.03980307]
[1765035781175,0.11445,89941.0,89940.0,0.03980307]
[1765035781384,0.11445,89938.0,89937.0,3.07e-06]
[1765035781671,0.11445,89931.0,89930.0,0.3608]
[1765035781876,0.11445,89931.0,89929.0,0.00016678]
[1765035781877,0.1255687,89930.0,89929.0,0.00016678]
[1765035782072,0.0111206,89915.0,89914.0,0.05970401]
[1765035782272,0.1255708,89913.0,89912.0,0.05970401]
[1765035782575,0.1255708,89913.0,89912.0,0.03784101]
[1765035782763,0.3608,89915.0,89903.0,0.07969392]
[1765035782764,0.14984,89904.0,89903.0,0.5178]
[1765035782963,0.14984,89904.0,89903.0,0.57879]
[1765035783177,0.14984,89904.0,89903.0,0.5178]
[1765035784281,0.11445,89899.0,89898.0,0.13189986]
[1765035784767,0.11445,89899.0,89898.0,0.12026]
[1765035784973,0.11445,89898.0,89897.0,0.3608]
[1765035785168,0.14984,89896.0,89895.0,0.00016678]
[1765035785675,0.14984,89896.0,89895.0,0.12042678]
[1765035786376,0.11445,89904.0,89903.0,0.12026]
[1765035786980,0.14984,89896.0,89895.0,0.12142678]
[1765035788271,0.14984,89896.0,89895.0,0.12042678]
[1765035789080,0.14984,89896.0,89895.0,0.12142678]
[1765035794687,0.11445,89896.0,89895.0,0.12142678]
[1765035795287,0.14984,89904.0,89903.0,0.12026]
[1765035795483,0.11445,89904.0,89903.0,0.12026]
[1765035796781,0.15000647,89912.0,89911.0,0.12026]
[1765035797086,0.11461647,89912.0,89911.0,0.12026]
[1765035798380,0.11561647,89912.0,89911.0,0.12026]
[1765035798784,0.11461647,89912.0,89911.0,0.12026]
[1765035800496,0.11461647,89912.0,89911.0,0.12126]
[1765035800982,0.11461647,89912.0,89911.0,0.12026]
[1765035801188,0.11461647,89912.0,89911.0,0.12126]
[1765035801587,0.11461647,89912.0,89911.0,0.12026]
[1765035801788,0.11461647,89912.0,89911.0,0.001]
[1765035802191,0.11445,89909.0,89908.0,0.42179]
[1765035803492,0.11445,89909.0,89908.0,0.48106]
[1765035804480,0.11445,89909.0,89908.0,0.9987]
[1765035804899,0.11445,89909.0,89908.0,1.05949772]
[1765035805195,0.11445,89909.0,89908.0,0.9997]
[1765035806991,0.00016647,89912.0,89908.0,0.9997]
[1765035806992,0.00016647,89912.0,89911.0,0.12026]
[1765035808689,0.00016647,89912.0,89911.0,0.12226]
[1765035809082,0.0692185,89932.0,89931.0,0.12026]
[1765035809282,0.1255685,89932.0,89931.0,0.12026]
[1765035809487,0.1255685,89932.0,89931.0,0.06099]
[1765035809692,0.11445,89931.0,89930.0,0.12026]
[1765035809894,0.11445,89931.0,89930.0,0.06099]
[1765035810793,0.11445,89931.0,89930.0,0.11991]
[1765035815093,0.0345706,89931.0,89930.0,0.11991]
[1765035815600,0.0928406,89931.0,89930.0,0.19977068]
[1765035816201,0.0928406,89931.0,89930.0,0.11991]
[1765035819306,0.42042,89934.0,89933.0,0.11587]
[1765035820007,0.47869,89934.0,89933.0,0.11587]
[1765035822006,0.42042,89934.0,89933.0,0.11587]
[1765035822206,0.47869,89934.0,89933.0,0.11587]
[1765035822596,0.51374,89934.0,89933.0,0.11587]
[1765035822796,0.51374,89934.0,89933.0,0.63319]
[1765035824404,0.15294,89934.0,89933.0,0.63319]
[1765035826008,0.11789,89934.0,89933.0,0.63319]
[1765035827007,0.15294,89934.0,89933.0,0.63319]
[1765035827504,0.15294,89934.0,89933.0,0.11587]
[1765035827708,0.15294,89934.0,89933.0,0.63307]
[1765035827897,0.11789,89931.0,89930.0,0.3608]
[1765035828097,0.11789,89931.0,89930.0,0.878]
[1765035828298,0.11789,89931.0,89930.0,0.93495]
[1765035828505,0.11789,89931.0,89930.0,0.878]
[1765035829204,0.11789,89931.0,89930.0,0.93495]
[1765035830098,0.11789,89931.0,89930.0,0.41775]
[1765035830293,0.11789,89931.0,89930.0,0.99387]
[1765035830493,0.1290079,89937.0,89936.0,0.11587]
[1765035831502,0.11789,89937.0,89936.0,0.11587]
[1765035832009,0.11889,89937.0,89936.0,0.11587]
[1765035832402,0.11989,89937.0,89936.0,0.11587]
[1765035836103,0.1487782,89934.0,89932.0,0.07986068]
[1765035836305,0.1155486,89931.0,89930.0,0.3608]
[1765035836613,0.1155486,89931.0,89930.0,0.87792]
[1765035837301,0.1155486,89931.0,89930.0,0.3608]
[1765035837705,0.1155486,89931.0,89929.0,0.07993065]
[1765035837911,0.10443,89930.0,89929.0,0.07993065]
[1765035838504,0.10443,89928.0,89927.0,0.07993065]
[1765035839715,0.10443,89928.0,89927.0,0.13176065]
[1765035839908,0.10443,89928.0,89927.0,0.05183]
[1765035840109,0.1364,89928.0,89927.0,0.13181906]
[1765035840310,0.1364,89928.0,89927.0,0.05183]
[1765035840712,0.1364,89928.0,89927.0,0.05283]
[1765035841012,0.1364,89928.0,89927.0,0.001]
[1765035842005,0.1364,89928.0,89927.0,0.10784]
[1765035843218,0.05302,89928.0,89927.0,0.10784]
[1765035843417,0.05302,89928.0,89927.0,0.46864]
[1765035843714,0.1140684,89933.0,89932.0,0.10684]
[1765035844816,0.10295,89933.0,89932.0,0.10684]
[1765035846824,0.10295,89933.0,89932.0,0.18683726]
[1765035847320,0.10295,89933.0,89932.0,0.10684]
[1765035847530,0.138,89940.0,89939.0,0.10684]
[1765035848417,0.10295,89940.0,89939.0,0.10684]
[1765035848623,0.10295,89940.0,89939.0,0.18683625]
[1765035849034,0.10395,89940.0,89939.0,0.18683625]
[1765035849237,0.05375,89940.0,89939.0,0.1986392]
[1765035849543,0.10495,89940.0,89939.0,0.1986392]
[1765035849944,0.002,89940.0,89939.0,0.1986392]
[1765035850139,0.05475,89940.0,89939.0,0.1986392]
[1765035850445,0.10495,89940.0,89939.0,0.1986392]
[1765035851737,0.13692,89940.0,89939.0,0.1986392]
[1765035852336,0.13692,89940.0,89939.0,0.18683625]
[1765035852648,0.13692,89940.0,89939.0,0.11836171]
[1765035852852,0.13692,89940.0,89939.0,0.06443171]
[1765035853050,0.13692,89940.0,89939.0,0.01152171]
[1765035853242,0.13692,89940.0,89939.0,0.05291]
[1765035853543,0.13692,89940.0,89939.0,0.10684]
[1765035854151,0.13692,89940.0,89939.0,0.1182497]
[1765035855149,0.13692,89940.0,89939.0,0.10684]
[1765035855349,0.10295,89939.0,89938.0,0.07999625]
[1765035855548,0.114068,89936.0,89935.0,0.07999625]
[1765035856238,0.114068,89936.0,89919.0,0.01112]
[1765035856239,0.10295,89929.0,89928.0,0.07999625]
[1765035856452,0.146039,89928.0,89927.0,0.07999625]
[1765035857146,0.10295,89925.0,89924.0,0.07999625]
[1765035857550,0.10295,89923.0,89922.0,0.08016303]
[1765035857749,0.10295,89923.0,89922.0,0.00016678]
[1765035859456,0.10295,89923.0,89922.0,0.10700678]
[1765035859850,0.05275,89923.0,89922.0,0.10700678]
[1765035860063,0.05275,89923.0,89922.0,0.10900678]
[1765035861544,0.10295,89923.0,89922.0,0.10900678]
[1765035863453,0.10295,89923.0,89922.0,0.13502085]
[1765035863956,0.10295,89923.0,89922.0,0.13502116]
[1765035864654,0.10295,89923.0,89922.0,0.00216678]
[1765035868343,0.10295,89923.0,89922.0,0.06211141]